lending/lending_fUSD_20240710
["ID","MTS","AMOUNT","RATE_DAILY","PERIOD"]
[331607030,1720578743876,-500.0,0.00014052,2]
[331607031,1720578743887,-500.0,0.00014052,2]
[331607032,1720578743896,-500.0,0.00014052,2]
[331607033,1720578743906,-500.0,0.00014052,2]
[331607034,1720578743916,-500.0,0.00014052,2]
[331607035,1720578743925,-500.0,0.00014052,2]
[331607036,1720578743935,-500.0,0.00014052,2]
[331607037,1720578743945,-500.0,0.00014052,2]
[331607038,1720578743955,-500.0,0.00014052,2]
[331607039,1720578743964,-500.0,0.00014052,2]
[331607040,1720578743973,-500.0,0.00014052,2]
[331607041,1720578743983,-500.0,0.00014052,2]
[331607042,1720578743993,-500.0,0.00014052,2]
[331607043,1720578744002,-500.0,0.00014052,2]
[331607044,1720578744011,-500.0,0.00014052,2]
[331607045,1720578744021,-369.00039942,0.00014052,2]
[331607046,1720578744031,-500.0,0.00014052,2]
[331607047,1720578744040,-500.0,0.00014052,2]
[331607048,1720578744050,-500.0,0.00014052,2]
[331607049,1720578744059,-500.0,0.00014052,2]
[331607050,1720578744068,-500.0,0.00014052,2]
[331607051,1720578744078,-500.0,0.00014052,2]
[331607052,1720578744088,-500.0,0.00014052,2]
[331607053,1720578744097,-500.0,0.00014052,2]
[331607054,1720578744107,-500.0,0.00014052,2]
[331607055,1720578744117,-340.39787645,0.00014052,2]
[331607056,1720578744128,-500.0,0.00014052,2]
[331607057,1720578744138,-347.78844589,0.00014052,2]
[331607058,1720578744148,-500.0,0.00014052,2]
[331607059,1720578744160,-500.0,0.00014052,2]
[331607060,1720578744169,-500.0,0.00014052,2]
[331607061,1720578744179,-908.45,0.00014053,2]
[331607062,1720578744189,-661.13,0.00014053,2]
[331607063,1720578744198,-500.0,0.00014053,2]
[331607064,1720578744208,-769.46,0.00014053,2]
[331607065,1720578744218,-3561.78,0.00014053,2]
[331607066,1720578744227,-1343.75,0.00014053,2]
[331607067,1720578744237,-500.0,0.00014053,2]
[331607068,1720578744247,-1383.61,0.00014053,2]
[331607069,1720578744256,-1390.66,0.00014053,2]
[331607070,1720578744265,-2786.81,0.00014053,2]
[331607071,1720578744274,-951.91,0.00014053,2]
[331607072,1720578744283,-500.0,0.00014053,2]
[331607073,1720578744292,-500.0,0.00014053,2]
[331607074,1720578744302,-1100.41,0.00014053,2]
[331607075,1720578744311,-1446.15,0.00014053,2]
[331607076,1720578744320,-1354.86,0.00014053,2]
[331607077,1720578744330,-1173.43,0.00014053,2]
[331607078,1720578744339,-657.2,0.00014053,2]
[331607079,1720578744348,-1316.84,0.00014053,2]
[331607080,1720578744358,-2361.64,0.00014053,2]
[331607081,1720578744368,-714.27,0.00014053,2]
[331607082,1720578744379,-1654.5,0.00014053,2]
[331607083,1720578744389,-500.0,0.00014053,2]
[331607084,1720578744400,-500.0,0.00014053,2]
[331607085,1720578744409,-500.0,0.00014053,2]
[331607086,1720578744420,-1989.03,0.00014053,2]
[331607087,1720578744429,-658.51,0.00014053,2]
[331607088,1720578744439,-896.87,0.00014053,2]
[331607089,1720578744449,-500.0,0.00014053,2]
[331607090,1720578744458,-620.44,0.00014053,2]
[331607091,1720578744467,-602.63,0.00014053,2]
[331607092,1720578744477,-1203.55,0.00014053,2]
[331607093,1720578744486,-500.0,0.00014053,2]
[331607094,1720578744496,-1134.03,0.00014053,2]
[331607095,1720578744505,-521.53,0.00014053,2]
[331607096,1720578744514,-542.03,0.00014053,2]
[331607097,1720578744523,-500.0,0.00014053,2]
[331607098,1720578744532,-621.43,0.00014053,2]
[331607099,1720578744542,-1368.5,0.00014053,2]
[331607100,1720578744551,-500.0,0.00014053,2]
[331607101,1720578744560,-883.15,0.00014053,2]
[331607102,1720578744570,-900.28,0.00014053,2]
[331607103,1720578744579,-596.89,0.00014053,2]
[331607104,1720578744588,-940.85,0.00014053,2]
[331607105,1720578744598,-816.55,0.00014053,2]
[331607106,1720578744608,-1329.26,0.00014053,2]
[331607107,1720578744617,-564.31819129,0.00014053,2]
[331607108,1720578744628,-500.0,0.00014053,2]
[331607109,1720578744637,-500.0,0.00014053,2]
[331607110,1720578744647,-1561.93,0.00014053,2]
[331607111,1720578744656,-500.0,0.00014053,2]
[331607112,1720578744666,-2019.26,0.00014053,2]
[331607113,1720578744675,-1658.03,0.00014053,2]
[331607114,1720578744684,-560.71,0.00014053,2]
[331607115,1720578744693,-638.51,0.00014053,2]
[331607116,1720578744703,-500.0,0.00014053,2]
[331607117,1720578744713,-500.0,0.00014053,2]
[331607118,1720578744722,-512.68,0.00014053,2]
[331607119,1720578744732,-2886.16,0.00014053,2]
[331607120,1720578744742,-789.36,0.00014053,2]
[331607121,1720578744752,-547.82910961,0.00014053,2]
[331607122,1720578744761,-500.0,0.00014053,2]
[331607123,1720578744771,-2338.96,0.00014053,2]
[331607124,1720578744780,-500.0,0.00014053,2]
[331607125,1720578744790,-500.0,0.00014053,2]
[331607126,1720578744800,-500.0,0.00014053,2]
[331607127,1720578744809,-837.97,0.00014053,2]
[331607128,1720578744819,-500.0,0.00014053,2]
[331607129,1720578744829,-551.0,0.00014053,2]
[331607130,1720578744839,-583.25,0.00014053,2]
[331607131,1720578744848,-1412.79,0.00014053,2]
[331607132,1720578744858,-1306.82,0.00014053,2]
[331607133,1720578744868,-500.0,0.00014053,2]
[331607134,1720578744882,-500.0,0.00014053,2]
[331607135,1720578744893,-2505.4,0.00014053,2]
[331607136,1720578744903,-853.07,0.00014053,2]
[331607137,1720578744912,-500.0,0.00014053,2]
[331607138,1720578744922,-2776.66,0.00014053,2]
[331607139,1720578744931,-520.5778938,0.00014055,2]
[331607140,1720578744940,-227.87814094,0.00014055,2]
[331607141,1720578744950,-520.5778938,0.00014066,2]
[331607142,1720578744959,-227.87814094,0.00014066,2]
[331607143,1720578744969,-150.0,0.00014075,2]
[331607144,1720578744979,-520.5778938,0.00014078,2]
[331607145,1720578744989,-227.87814094,0.00014078,2]
[331607146,1720578744998,-4197.77,0.00014082,2]
[331607147,1720578745007,-520.5778938,0.00014089,2]
[331607148,1720578745016,-227.87814094,0.00014089,2]
[331607149,1720578745025,-757.8,0.000141,2]
[331607150,1720578745035,-500.0,0.000141,2]
[331607151,1720578745045,-500.0,0.000141,2]
[331607152,1720578745054,-636.3,0.000141,2]
[331607153,1720578745063,-500.0,0.000141,2]
[331607154,1720578745073,-2000.0,0.000141,2]
[331607155,1720578745082,-2005.69,0.000141,2]
[331607156,1720578745091,-500.0,0.000141,2]
[331607157,1720578745100,-500.0,0.000141,2]
[331607158,1720578745109,-500.0,0.000141,2]
[331607159,1720578745119,-1486.82,0.000141,2]
[331607160,1720578745132,-500.0,0.000141,2]
[331607161,1720578745143,-500.0,0.000141,2]
[331607162,1720578745152,-500.0,0.000141,2]
[331607163,1720578745161,-500.0,0.000141,2]
[331607164,1720578745171,-500.0,0.000141,2]
[331607165,1720578745180,-640.71098541,0.000141,2]
[331607166,1720578745190,-500.0,0.000141,2]
[331607167,1720578745199,-500.0,0.000141,2]
[331607168,1720578745209,-1914.68,0.000141,2]
[331607169,1720578745220,-500.0,0.000141,2]
[331607170,1720578745229,-500.0,0.000141,2]
[331607171,1720578745238,-500.0,0.000141,2]
[331607172,1720578745248,-500.0,0.000141,2]
[331607173,1720578745257,-500.0,0.000141,2]
[331607174,1720578745267,-500.0,0.000141,2]
[331607175,1720578745276,-500.0,0.000141,2]
[331607176,1720578745286,-500.0,0.000141,2]
[331607177,1720578745295,-1000.0,0.000141,2]
[331607178,1720578745305,-3914.89,0.000141,2]
[331607179,1720578745314,-500.0,0.000141,2]
[331607180,1720578745323,-500.0,0.000141,2]
[331607181,1720578745333,-500.0,0.000141,2]
[331607182,1720578745343,-500.0,0.000141,2]
[331607183,1720578745352,-520.5778938,0.000141,2]
[331607184,1720578745361,-227.87814094,0.000141,2]
[331607185,1720578745371,-1455.92,0.00014101,2]
[331607186,1720578745381,-500.0,0.00014101,2]
[331607187,1720578745391,-1960.51,0.00014101,2]
[331607188,1720578745400,-2618.57,0.00014101,2]
[331607189,1720578745409,-1029.8,0.00014101,2]
[331607190,1720578745418,-1905.84,0.00014101,2]
[331607191,1720578745428,-2751.51,0.00014101,2]
[331607192,1720578745438,-5036.29,0.00014101,2]
[331607193,1720578745447,-670.86,0.00014101,2]
[331607194,1720578745456,-1711.01,0.00014101,2]
[331607195,1720578745466,-500.0,0.00014101,2]
[331607196,1720578745475,-500.0,0.00014101,2]
[331607197,1720578745485,-500.0,0.00014101,2]
[331607198,1720578745494,-3859.09,0.00014101,2]
[331607199,1720578745504,-1762.08,0.00014101,2]
[331607200,1720578745513,-1456.74,0.00014101,2]
[331607201,1720578745522,-3792.63,0.00014101,2]
[331607202,1720578745532,-1563.93,0.00014101,2]
[331607203,1720578745541,-2172.58,0.00014101,2]
[331607204,1720578745551,-1021.12,0.00014101,2]
[331607205,1720578745560,-1287.44,0.00014101,2]
[331607206,1720578745569,-500.0,0.00014101,2]
[331607207,1720578745578,-2002.94,0.00014101,2]
[331607208,1720578745588,-500.0,0.00014101,2]
[331607209,1720578745596,-2847.29,0.00014101,2]
[331607210,1720578745606,-500.0,0.00014101,2]
[331607211,1720578745615,-1287.82,0.00014101,2]
[331607212,1720578745626,-500.0,0.00014101,2]
[331607213,1720578745635,-500.0,0.00014101,2]
[331607214,1720578745644,-1532.31,0.00014101,2]
[331607215,1720578745652,-18831.15,0.00014101,2]
[331607216,1720578745661,-573.49,0.00014101,2]
[331607217,1720578745670,-507.26,0.00014101,2]
[331607218,1720578745679,-4113.11,0.00014101,2]
[331607219,1720578745688,-1312.78,0.00014101,2]
[331607220,1720578745698,-1834.03,0.00014101,2]
[331607221,1720578745707,-2122.3,0.00014101,2]
[331607222,1720578745716,-5120.22,0.00014101,2]
[331607223,1720578745726,-1279.8,0.00014101,2]
[331607224,1720578745735,-839.66,0.00014101,2]
[331607225,1720578745744,-1175.98,0.00014101,2]
[331607226,1720578745753,-4117.2,0.00014101,2]
[331607227,1720578745763,-1655.36,0.00014101,2]
[331607228,1720578745773,-1896.2,0.00014101,2]
[331607229,1720578745783,-1132.24,0.00014101,2]
[331607230,1720578745792,-606.3,0.00014101,2]
[331607231,1720578745802,-654.8,0.00014101,2]
[331607232,1720578745811,-1131.81,0.00014101,2]
[331607233,1720578745820,-1334.15,0.00014101,2]
[331607234,1720578745830,-500.0,0.00014101,2]
[331607235,1720578745839,-2422.26,0.00014101,2]
[331607236,1720578745849,-1951.99,0.00014101,2]
[331607237,1720578745859,-1116.51,0.00014101,2]
[331607238,1720578745869,-2661.03,0.00014101,2]
[331607239,1720578745885,-1178.8,0.00014101,2]
[331607240,1720578745895,-1200.25,0.00014101,2]
[331607241,1720578745905,-1253.31,0.00014101,2]
[331607242,1720578745914,-1260.1,0.00014101,2]
[331607243,1720578745924,-1418.06,0.00014101,2]
[331607244,1720578745934,-3430.04,0.00014101,2]
[331607245,1720578745943,-500.0,0.00014101,2]
[331607246,1720578745953,-500.0,0.00014101,2]
[331607247,1720578745963,-549.11,0.00014101,2]
[331607248,1720578745972,-500.0,0.00014101,2]
[331607249,1720578745981,-3396.59,0.00014101,2]
[331607250,1720578745991,-500.0,0.00014101,2]
[331607251,1720578746000,-500.0,0.00014101,2]
[331607252,1720578746009,-500.0,0.00014101,2]
[331607253,1720578746019,-1770.78,0.00014101,2]
[331607254,1720578746028,-2530.21,0.00014101,2]
[331607255,1720578746037,-1059.63,0.00014101,2]
[331607256,1720578746046,-1287.82,0.00014101,2]
[331607257,1720578746055,-196.8924893,0.00014101,2]
[331607258,1720578746064,-1544.82,0.00014101,2]
[331607259,1720578746073,-1342.13,0.00014101,2]
[331607260,1720578746082,-756.53,0.00014101,2]
[331607261,1720578746092,-944.74,0.00014101,2]
[331607262,1720578746101,-500.0,0.00014101,2]
[331607263,1720578746110,-1406.5,0.00014101,2]
[331607264,1720578746119,-500.0,0.00014101,2]
[331607265,1720578746132,-1077.77,0.00014101,2]
[331607266,1720578746142,-3328.51,0.00014101,2]
[331607267,1720578746151,-500.0,0.00014101,2]
[331607268,1720578746160,-3783.08,0.00014101,2]
[331607269,1720578746171,-869.72,0.00014101,2]
[331607270,1720578746180,-500.0,0.00014101,2]
[331607271,1720578746189,-500.0,0.00014101,2]
[331607272,1720578746198,-3362.6,0.00014101,2]
[331607273,1720578746207,-656.32,0.00014101,2]
[331607274,1720578746215,-504.68,0.00014101,2]
[331607275,1720578746224,-3222.36,0.00014101,2]
[331607276,1720578746233,-1629.29,0.00014101,2]
[331607277,1720578746242,-500.0,0.00014101,2]
[331607278,1720578746250,-500.0,0.00014101,2]
[331607279,1720578746260,-3487.89,0.00014101,2]
[331607280,1720578746270,-1828.3,0.00014101,2]
[331607281,1720578746280,-500.0,0.00014101,2]
[331607282,1720578746292,-383.94976129,0.00014101,2]
[331607283,1720578746302,-5257.38,0.00014101,2]
[331607284,1720578746312,-500.0,0.00014101,2]
[331607285,1720578746323,-1267.89,0.00014101,2]
[331607286,1720578746332,-500.0,0.00014101,2]
[331607287,1720578746342,-500.0,0.00014101,2]
[331607288,1720578746351,-500.0,0.00014101,2]
[331607289,1720578746360,-634.68,0.00014101,2]
[331607290,1720578746370,-2273.65,0.00014101,2]
[331607291,1720578746381,-500.0,0.00014101,2]
[331607292,1720578746391,-500.0,0.00014101,2]
[331607293,1720578746400,-500.0,0.00014101,2]
[331607294,1720578746409,-500.0,0.00014101,2]
[331607295,1720578746419,-896.69,0.00014101,2]
[331607296,1720578746428,-500.0,0.00014101,2]
[331607297,1720578746437,-966.63,0.00014101,2]
[331607298,1720578746447,-1443.09,0.00014101,2]
[331607299,1720578746456,-500.0,0.00014101,2]
[331607300,1720578746465,-500.0,0.00014101,2]
[331607301,1720578746475,-639.2,0.00014101,2]
[331607302,1720578746484,-500.0,0.00014101,2]
[331607303,1720578746493,-500.0,0.00014101,2]
[331607304,1720578746502,-500.0,0.00014101,2]
[331607305,1720578746512,-500.0,0.00014101,2]
[331607306,1720578746521,-1220.14,0.00014101,2]
[331607307,1720578746531,-500.0,0.00014101,2]
[331607308,1720578746540,-541.01,0.00014101,2]
[331607309,1720578746549,-500.0,0.00014101,2]
[331607310,1720578746558,-831.42,0.00014101,2]
[331607311,1720578746567,-1127.62,0.00014101,2]
[331607312,1720578746576,-1218.93,0.00014101,2]
[331607313,1720578746585,-201.38,0.00014101,2]
[331607314,1720578746595,-1012.4,0.00014101,2]
[331607315,1720578746604,-1298.8,0.00014101,2]
[331607316,1720578746613,-500.0,0.00014101,2]
[331607317,1720578746623,-500.0,0.00014101,2]
[331607318,1720578746634,-970.3,0.00014101,2]
[331607319,1720578746643,-2186.57,0.00014101,2]
[331607320,1720578746652,-524.84,0.00014101,2]
[331607321,1720578746663,-1512.83,0.00014101,2]
[331607322,1720578746672,-1160.2,0.00014101,2]
[331607323,1720578746681,-500.0,0.00014101,2]
[331607324,1720578746691,-660.83,0.00014101,2]
[331607325,1720578746700,-1757.71,0.00014101,2]
[331607326,1720578746710,-500.0,0.00014101,2]
[331607327,1720578746720,-1106.87,0.00014101,2]
[331607328,1720578746730,-500.0,0.00014101,2]
[331607329,1720578746739,-500.0,0.00014101,2]
[331607330,1720578746749,-500.0,0.00014101,2]
[331607331,1720578746758,-500.0,0.00014101,2]
[331607332,1720578746768,-701.66,0.00014101,2]
[331607333,1720578746777,-1729.59,0.00014101,2]
[331607334,1720578746787,-2068.54,0.00014101,2]
[331607335,1720578746796,-1374.41,0.00014101,2]
[331607336,1720578746805,-1628.46,0.00014101,2]
[331607337,1720578746815,-500.0,0.00014101,2]
[331607338,1720578746824,-500.0,0.00014101,2]
[331607339,1720578746834,-677.11,0.00014101,2]
[331607340,1720578746844,-1656.94,0.00014101,2]
[331607341,1720578746854,-1266.15,0.00014101,2]
[331607342,1720578746865,-500.0,0.00014101,2]
[331607343,1720578746876,-1326.83,0.00014101,2]
[331607344,1720578746887,-714.26,0.00014101,2]
[331607345,1720578746896,-570.72,0.00014101,2]
[331607346,1720578746906,-500.0,0.00014101,2]
[331607347,1720578746916,-2502.21,0.00014101,2]
[331607348,1720578746926,-3059.3,0.00014101,3]
[331607349,1720578746936,-500.0,0.00014101,2]
[331607350,1720578746946,-905.75,0.00014101,2]
[331607351,1720578746955,-2000.0,0.00014101,2]
[331607352,1720578746965,-1000.0,0.00014101,2]
[331607353,1720578746975,-500.0,0.00014101,2]
[331607354,1720578746986,-500.0,0.00014103,2]
[331607355,1720578746996,-500.0,0.00014103,2]
[331607356,1720578747006,-863.45,0.00014103,2]
[331607357,1720578747015,-692.27,0.00014103,2]
[331607358,1720578747025,-1710.86,0.00014103,2]
[331607359,1720578747157,-500.0,0.00014103,2]
[331607360,1720578747167,-500.0,0.00014103,2]
[331607361,1720578747177,-2134.95,0.00014103,2]
[331607362,1720578747187,-500.0,0.00014103,2]
[331607363,1720578747196,-500.0,0.00014103,2]
[331607364,1720578747206,-500.0,0.00014103,2]
[331607365,1720578747215,-500.0,0.00014103,2]
[331607366,1720578747226,-500.0,0.00014103,2]
[331607367,1720578747235,-1192.7,0.00014103,2]
[331607368,1720578747245,-1517.28,0.00014103,2]
[331607369,1720578747255,-500.0,0.00014103,2]
[331607370,1720578747266,-1017.28,0.00014103,2]
[331607371,1720578747276,-1181.86,0.00014103,2]
[331607372,1720578747286,-500.0,0.00014103,2]
[331607373,1720578747296,-654.08,0.00014103,2]
[331607374,1720578747306,-500.0,0.00014103,2]
[331607375,1720578747316,-987.54,0.00014103,2]
[331607376,1720578747325,-500.0,0.00014103,2]
[331607377,1720578747335,-2995.94,0.00014103,2]
[331607378,1720578747344,-1054.31,0.00014103,2]
[331607379,1720578747355,-2165.91,0.00014103,2]
[331607380,1720578747365,-500.0,0.00014103,2]
[331607381,1720578747377,-607.6,0.00014103,2]
[331607382,1720578747386,-1354.21,0.00014103,2]
[331607383,1720578747396,-1784.17,0.00014103,2]
[331607384,1720578747405,-500.0,0.00014103,2]
[331607385,1720578747415,-500.0,0.00014103,2]
[331607386,1720578747424,-1937.6,0.00014103,2]
[331607387,1720578747434,-516.92,0.00014103,2]
[331607388,1720578747444,-1991.09,0.00014103,2]
[331607389,1720578747453,-1109.41,0.00014103,2]
[331607390,1720578747463,-1472.59,0.00014103,2]
[331607391,1720578747473,-2752.23,0.00014103,2]
[331607392,1720578747483,-2851.3,0.00014103,2]
[331607393,1720578747493,-500.0,0.00014103,2]
[331607394,1720578747502,-266.7854199,0.00014103,2]
[331607395,1720578747512,-1647.37,0.00014103,2]
[331607396,1720578747522,-2067.21,0.00014103,2]
[331607397,1720578747532,-1761.2,0.00014103,2]
[331607398,1720578747542,-732.14,0.00014103,2]
[331607399,1720578747552,-1232.3,0.00014103,2]
[331607400,1720578747562,-2391.69,0.00014103,2]
[331607401,1720578747572,-526.95,0.00014103,2]
[331607402,1720578747582,-500.0,0.00014103,2]
[331607403,1720578747591,-547.38,0.00014103,2]
[331607404,1720578747601,-585.5,0.00014103,2]
[331607405,1720578747611,-506.96969754,0.00014103,2]
[331607406,1720578747621,-500.0,0.00014103,2]
[331607407,1720578747632,-1452.15,0.00014103,2]
[331607408,1720578747642,-1107.7,0.00014103,2]
[331607409,1720578747651,-500.0,0.00014103,2]
[331607410,1720578747661,-1314.31,0.00014103,2]
[331607411,1720578747671,-500.0,0.00014103,2]
[331607412,1720578747681,-500.0,0.00014103,2]
[331607413,1720578747691,-1357.14,0.00014103,2]
[331607414,1720578747700,-1164.74,0.00014103,2]
[331607415,1720578747711,-500.0,0.00014103,2]
[331607416,1720578747720,-1463.89,0.00014103,2]
[331607417,1720578747730,-500.0,0.00014103,2]
[331607418,1720578747740,-500.0,0.00014103,2]
[331607419,1720578747749,-2541.37,0.00014103,2]
[331607420,1720578747760,-500.0,0.00014103,2]
[331607421,1720578747770,-2269.15,0.00014103,2]
[331607422,1720578747779,-500.0,0.00014103,2]
[331607423,1720578747789,-500.0,0.00014103,2]
[331607424,1720578747799,-500.0,0.00014103,2]
[331607425,1720578747809,-500.0,0.00014103,2]
[331607426,1720578747818,-653.53,0.00014103,2]
[331607427,1720578747828,-677.36,0.00014103,2]
[331607428,1720578747837,-1092.06,0.00014103,2]
[331607429,1720578747847,-500.0,0.00014103,2]
[331607430,1720578747857,-1563.68,0.00014103,2]
[331607431,1720578747867,-706.32,0.00014103,2]
[331607432,1720578747881,-500.0,0.00014103,2]
[331607433,1720578747891,-652.31,0.00014103,2]
[331607434,1720578747900,-1323.65,0.00014103,2]
[331607435,1720578747909,-500.0,0.00014103,2]
[331607436,1720578747918,-3373.37,0.00014103,2]
[331607437,1720578747927,-500.0,0.00014103,2]
[331607438,1720578747937,-500.0,0.00014103,2]
[331607439,1720578747946,-1551.53,0.00014103,2]
[331607440,1720578747956,-500.0,0.00014103,2]
[331607441,1720578747966,-1840.96,0.00014103,2]
[331607442,1720578747976,-500.0,0.00014103,2]
[331607443,1720578747986,-620.02426927,0.00014103,2]
[331607444,1720578747997,-500.0,0.00014103,2]
[331607445,1720578748007,-2752.03,0.00014103,2]
[331607446,1720578748017,-490.4627354,0.00014103,2]
[331607447,1720578748027,-1628.17,0.00014103,2]
[331607448,1720578748036,-500.0,0.00014103,2]
[331607449,1720578748046,-500.0,0.00014103,2]
[331607450,1720578748055,-865.68,0.00014103,2]
[331607451,1720578748065,-576.36,0.00014103,2]
[331607452,1720578748075,-500.0,0.00014103,2]
[331607453,1720578748084,-500.0,0.00014103,2]
[331607454,1720578748094,-2288.17,0.00014103,2]
[331607455,1720578748103,-500.0,0.00014103,2]
[331607456,1720578748113,-2161.78,0.00014103,2]
[331607457,1720578748123,-630.4,0.00014103,2]
[331607458,1720578748134,-2212.0,0.00014103,2]
[331607459,1720578748144,-500.0,0.00014103,2]
[331607460,1720578748154,-500.0,0.00014103,2]
[331607461,1720578748164,-743.11,0.00014103,2]
[331607462,1720578748174,-1387.02,0.00014103,2]
[331607463,1720578748184,-885.74,0.00014103,2]
[331607464,1720578748194,-500.0,0.00014103,2]
[331607465,1720578748204,-2201.53,0.00014103,2]
[331607466,1720578748214,-500.0,0.00014103,2]
[331607467,1720578748223,-2690.13,0.00014103,2]
[331607468,1720578748233,-1500.63,0.00014103,2]
[331607469,1720578748243,-755.58,0.00014103,2]
[331607470,1720578748252,-500.0,0.00014103,2]
[331607471,1720578748262,-500.0,0.00014103,2]
[331607472,1720578748271,-970.09,0.00014103,2]
[331607473,1720578748281,-500.0,0.00014103,2]
[331607474,1720578748291,-3077.31,0.00014103,2]
[331607475,1720578748303,-500.0,0.00014103,2]
[331607476,1720578748313,-500.0,0.00014103,2]
[331607477,1720578748323,-500.0,0.00014103,2]
[331607478,1720578748336,-507.74,0.00014103,2]
[331607479,1720578748345,-1219.64,0.00014103,2]
[331607480,1720578748356,-500.0,0.00014103,2]
[331607481,1720578748367,-3164.67,0.00014103,2]
[331607482,1720578748377,-500.0,0.00014103,2]
[331607483,1720578748386,-652.98,0.00014103,2]
[331607484,1720578748395,-550.88,0.00014103,2]
[331607485,1720578748404,-1941.67,0.00014103,2]
[331607486,1720578748414,-500.0,0.00014103,2]
[331607487,1720578748423,-2774.62,0.00014103,2]
[331607488,1720578748433,-500.0,0.00014103,2]
[331607489,1720578748442,-938.84,0.00014103,2]
[331607490,1720578748451,-500.0,0.00014103,2]
[331607491,1720578748461,-500.0,0.00014103,2]
[331607492,1720578748471,-912.5,0.00014103,2]
[331607493,1720578748480,-500.0,0.00014103,2]
[331607494,1720578748490,-1216.41,0.00014103,2]
[331607495,1720578748499,-1061.39,0.00014103,2]
[331607496,1720578748508,-500.0,0.00014103,2]
[331607497,1720578748518,-2518.94,0.00014103,2]
[331607498,1720578748528,-500.0,0.00014103,2]
[331607499,1720578748538,-500.0,0.00014103,2]
[331607500,1720578748548,-3436.86,0.00014103,2]
[331607501,1720578748558,-500.0,0.00014103,2]
[331607502,1720578748568,-1247.03,0.00014103,2]
[331607503,1720578748577,-1304.47,0.00014103,2]
[331607504,1720578748586,-500.0,0.00014103,2]
[331607505,1720578748595,-500.0,0.00014103,2]
[331607506,1720578748606,-5696.56,0.00014103,2]
[331607507,1720578748616,-711.42,0.00014103,2]
[331607508,1720578748627,-2106.9,0.00014103,2]
[331607509,1720578748638,-639.14,0.00014103,2]
[331607510,1720578748649,-500.0,0.00014103,2]
[331607511,1720578748658,-500.0,0.00014103,2]
[331607512,1720578748667,-2398.73,0.00014103,2]
[331607513,1720578748677,-500.0,0.00014103,2]
[331607514,1720578748686,-197.23962785,0.00014103,2]
[331607515,1720578748697,-500.0,0.00014103,2]
[331607516,1720578748706,-507.93,0.00014103,2]
[331607517,1720578748716,-1148.15,0.00014103,2]
[331607518,1720578748726,-727.9,0.00014103,2]
[331607519,1720578748735,-500.0,0.00014103,2]
[331607520,1720578748744,-527.91,0.00014103,2]
[331607521,1720578748753,-1772.75,0.00014103,2]
[331607522,1720578748762,-733.34,0.00014103,2]
[331607523,1720578748772,-2234.89,0.00014103,2]
[331607524,1720578748781,-834.6,0.00014103,2]
[331607525,1720578748790,-500.0,0.00014103,2]
[331607526,1720578748799,-500.0,0.00014103,2]
[331607527,1720578748808,-500.0,0.00014103,2]
[331607528,1720578748817,-500.0,0.00014103,2]
[331607529,1720578748826,-500.0,0.00014103,2]